Workbook

Sheet Sheet1
A1: Search Results:
A2: Listing Title | B2: Potential Value | C2: Listing Price | D2: Column1 | E2: Discount from New Item | F2: % Discount
A3: Samsung 23" hd Monitor | B3: 216.2276923 | C3: =Table2[[#This Row],[Column1]]/100 -> 100 | D3: 10000 | E3: =IF(Table2[[#This Row],[Potential Value]]="Unavailable","-----",Table2[[#This Row],[Potential Value]]-Table2[[#This Row],[Listing Price]]) -> 116.2276923 | F3: =IF(Table2[[#This Row],[Potential Value]]="Unavailable","-----",Table2[[#This Row],[Discount from New Item]]/Table2[[#This Row],[Potential Value]]) -> 0.5375245468
A4: 20" Flat screen CRT monitor 801-576-9212 | B4: Unavailable | C4: =Table2[[#This Row],[Column1]]/100 -> 20 | D4: 2000 | E4: =IF(Table2[[#This Row],[Potential Value]]="Unavailable","-----",Table2[[#This Row],[Potential Value]]-Table2[[#This Row],[Listing Price]]) -> ----- | F4: =IF(Table2[[#This Row],[Potential Value]]="Unavailable","-----",Table2[[#This Row],[Discount from New Item]]/Table2[[#This Row],[Potential Value]]) -> -----
A5: 19.5 inch Ativa LCD monitor great price. | B5: Unavailable | C5: =Table2[[#This Row],[Column1]]/100 -> 100 | D5: 10000 | E5: =IF(Table2[[#This Row],[Potential Value]]="Unavailable","-----",Table2[[#This Row],[Potential Value]]-Table2[[#This Row],[Listing Price]]) -> ----- | F5: =IF(Table2[[#This Row],[Potential Value]]="Unavailable","-----",Table2[[#This Row],[Discount from New Item]]/Table2[[#This Row],[Potential Value]]) -> -----
A6: 17" Westing House Monitor Excellent Condition Looks Ne... | B6: Unavailable | C6: =Table2[[#This Row],[Column1]]/100 -> 60 | D6: 6000 | E6: =IF(Table2[[#This Row],[Potential Value]]="Unavailable","-----",Table2[[#This Row],[Potential Value]]-Table2[[#This Row],[Listing Price]]) -> ----- | F6: =IF(Table2[[#This Row],[Potential Value]]="Unavailable","-----",Table2[[#This Row],[Discount from New Item]]/Table2[[#This Row],[Potential Value]]) -> -----
A7: need monitor for daughter | B7: 33.038 | C7: =Table2[[#This Row],[Column1]]/100 -> 5 | D7: 500 | E7: =IF(Table2[[#This Row],[Potential Value]]="Unavailable","-----",Table2[[#This Row],[Potential Value]]-Table2[[#This Row],[Listing Price]]) -> 28.038 | F7: =IF(Table2[[#This Row],[Potential Value]]="Unavailable","-----",Table2[[#This Row],[Discount from New Item]]/Table2[[#This Row],[Potential Value]]) -> 0.8486591198
A8: Kortek TFT-LCD 46" Computer Monitor | B8: Unavailable | C8: =Table2[[#This Row],[Column1]]/100 -> 100 | D8: 10000 | E8: =IF(Table2[[#This Row],[Potential Value]]="Unavailable","-----",Table2[[#This Row],[Potential Value]]-Table2[[#This Row],[Listing Price]]) -> ----- | F8: =IF(Table2[[#This Row],[Potential Value]]="Unavailable","-----",Table2[[#This Row],[Discount from New Item]]/Table2[[#This Row],[Potential Value]]) -> -----
A9: brand new in box ViewSonic 24" 1080p HD LCD Display Wi... | B9: Unavailable | C9: =Table2[[#This Row],[Column1]]/100 -> 185 | D9: 18500 | E9: =IF(Table2[[#This Row],[Potential Value]]="Unavailable","-----",Table2[[#This Row],[Potential Value]]-Table2[[#This Row],[Listing Price]]) -> ----- | F9: =IF(Table2[[#This Row],[Potential Value]]="Unavailable","-----",Table2[[#This Row],[Discount from New Item]]/Table2[[#This Row],[Potential Value]]) -> -----
A10: Sony XBrite SDM-HS75P/S 17" LCD Monitor (Silver) | B10: Unavailable | C10: =Table2[[#This Row],[Column1]]/100 -> 65 | D10: 6500 | E10: =IF(Table2[[#This Row],[Potential Value]]="Unavailable","-----",Table2[[#This Row],[Potential Value]]-Table2[[#This Row],[Listing Price]]) -> ----- | F10: =IF(Table2[[#This Row],[Potential Value]]="Unavailable","-----",Table2[[#This Row],[Discount from New Item]]/Table2[[#This Row],[Potential Value]]) -> -----
A11: Dell Ultrasharp 2007fp | B11: 304.9266667 | C11: =Table2[[#This Row],[Column1]]/100 -> 500 | D11: 50000 | E11: =IF(Table2[[#This Row],[Potential Value]]="Unavailable","-----",Table2[[#This Row],[Potential Value]]-Table2[[#This Row],[Listing Price]]) -> -195.0733333 | F11: =IF(Table2[[#This Row],[Potential Value]]="Unavailable","-----",Table2[[#This Row],[Discount from New Item]]/Table2[[#This Row],[Potential Value]]) -> -0.6397385164
A12: Dell 20.1 Ultra Sharp 2001FP Color Monitor. Perfect/N... | B12: Unavailable | C12: =Table2[[#This Row],[Column1]]/100 -> 100 | D12: 10000 | E12: =IF(Table2[[#This Row],[Potential Value]]="Unavailable","-----",Table2[[#This Row],[Potential Value]]-Table2[[#This Row],[Listing Price]]) -> ----- | F12: =IF(Table2[[#This Row],[Potential Value]]="Unavailable","-----",Table2[[#This Row],[Discount from New Item]]/Table2[[#This Row],[Potential Value]]) -> -----
A13: Monitor | B13: 221.1 | C13: =Table2[[#This Row],[Column1]]/100 -> 20 | D13: 2000 | E13: =IF(Table2[[#This Row],[Potential Value]]="Unavailable","-----",Table2[[#This Row],[Potential Value]]-Table2[[#This Row],[Listing Price]]) -> 201.1 | F13: =IF(Table2[[#This Row],[Potential Value]]="Unavailable","-----",Table2[[#This Row],[Discount from New Item]]/Table2[[#This Row],[Potential Value]]) -> 0.9095431931
A14: HP Pavillion VS17x 17-inch flat panel monitor - Cables... | B14: Unavailable | C14: =Table2[[#This Row],[Column1]]/100 -> 50 | D14: 5000 | E14: =IF(Table2[[#This Row],[Potential Value]]="Unavailable","-----",Table2[[#This Row],[Potential Value]]-Table2[[#This Row],[Listing Price]]) -> ----- | F14: =IF(Table2[[#This Row],[Potential Value]]="Unavailable","-----",Table2[[#This Row],[Discount from New Item]]/Table2[[#This Row],[Potential Value]]) -> -----
A15: HP 20" LCD "new in box" | B15: 134.99 | C15: =Table2[[#This Row],[Column1]]/100 -> 100 | D15: 10000 | E15: =IF(Table2[[#This Row],[Potential Value]]="Unavailable","-----",Table2[[#This Row],[Potential Value]]-Table2[[#This Row],[Listing Price]]) -> 34.99 | F15: =IF(Table2[[#This Row],[Potential Value]]="Unavailable","-----",Table2[[#This Row],[Discount from New Item]]/Table2[[#This Row],[Potential Value]]) -> 0.2592043855
A16: LCD Monitors! (40$-80$) | B16: 276.384 | C16: =Table2[[#This Row],[Column1]]/100 -> 40 | D16: 4000 | E16: =IF(Table2[[#This Row],[Potential Value]]="Unavailable","-----",Table2[[#This Row],[Potential Value]]-Table2[[#This Row],[Listing Price]]) -> 236.384 | F16: =IF(Table2[[#This Row],[Potential Value]]="Unavailable","-----",Table2[[#This Row],[Discount from New Item]]/Table2[[#This Row],[Potential Value]]) -> 0.8552738219
A17: Two 15 inch flat screen monitors get 2 for $30! | B17: 339.035 | C17: =Table2[[#This Row],[Column1]]/100 -> 20 | D17: 2000 | E17: =IF(Table2[[#This Row],[Potential Value]]="Unavailable","-----",Table2[[#This Row],[Potential Value]]-Table2[[#This Row],[Listing Price]]) -> 319.035 | F17: =IF(Table2[[#This Row],[Potential Value]]="Unavailable","-----",Table2[[#This Row],[Discount from New Item]]/Table2[[#This Row],[Potential Value]]) -> 0.9410090404

Sheet KSL
A1: About this ad
A2: ksl.com
A3: ksl | web | keyword
A5: News
A6: Video
A7: TV
A8: Radio
A9: Weather
A10: Sports
A11: Traffic
A12: Movies
A13: Studio 5
A14: More
A16: Classifieds CarsJobs Deals
A18: Browse Ads
A19: Cars
A20: Homes
A21: Jobs
A22: Services
A23: Place a FREE Ad
A24: Place a FREE Car Ad
A25: My Ads
A26: Advanced Search
A27: Help
A29: GuestLoginDec 10th, 2010
A31: Computers
A32: Monitors
A34: Keywords
A36: Zip
A38: Miles from
A40: Min $
A42: Max $
A44: Seller
B49: FEATURED AD Kenwood KDC-MP345U
B50: Provo, UT
B51: 99.95
B52: Want to feature your ad here? Click here to learn how!
A53: sort by
A54: State:
A55: Ad Filter:
A56: For Sale (319)
A57: Item Wanted
A58: Samsung 23" hd Monitor
A59: Centerville, UT
A60: Works Great never had any problems I just have no use for it anymore
A61: 10000
A62: 2010-12-10
A63: 4 Hrs
A64: 20" Flat screen CRT monitor 801-576-9212
A65: Sandy, UT
A66: 20" Flat screen CRT monitor 801-576-9212
A67: 2000
A68: 2010-12-10
A69: 4 Hrs
A70: 19.5 inch Ativa LCD monitor great price.
A71: North Salt Lake, UT
A72: Perfectly working monitor, just got an apple so I don't need a pc monitor anymore. Great resolution,connects by VGA call, text, or email.
A73: 10000
A74: 2010-12-10
A75: 5 Hrs
A76: 17" Westing House Monitor Excellent Condition Looks Ne...
A77: Bountiful, UT
A78: I have a !7" Monitor that has been used very little. Please contact Brooklyn 801-837-1856.
A79: 6000
A80: 2010-12-10
A81: 5 Hrs
A82: need monitor for daughter
A83: Logan, UT
A84: were looking for a plain simple computer for my daughter to do her home school.
A85: 500
A86: 2010-12-10
A87: 5 Hrs
A88: Kortek TFT-LCD 46" Computer Monitor
A89: South Jordan, UT
A90: I got this thinking I could fix it. Well so much for that. I monkeyed with the power board, so I think you need a new one. I think that's the proble
A91: 10000
A92: 2010-12-10
A93: 6 Hrs
A94: brand new in box ViewSonic 24" 1080p HD LCD Display Wi...
A95: Salt Lake City, UT
A96: brand new in box ViewSonic 24" 1080p HD LCD Display. item is not refurbished market price $260.Viewsonic VX2433wm widescreen LCD is ideal for gamers,
A97: 18500
A98: 2010-12-10
A99: 7 Hrs
A100: Sony XBrite SDM-HS75P/S 17" LCD Monitor (Silver)
A101: COTTONWOOD HEIGHTS, UT
A102: LIKE NEW IN EXCELLENT CONDITION. Only used for a few months then moved and did not set computer up.Sony SDM-HS75P/S 17" LCD Monitor - This LCD compute
A103: 6500
A104: 2010-12-10
A105: 8 Hrs
A106: Dell Ultrasharp 2007fp
A107: South Weber, UT
A108: $250 a piece; I will sell individually but they make a fantastic dual monitor setup. These are in PERFECT working and visual condition. They sell for
A109: 50000
A110: 2010-12-10
A111: 9 Hrs
A112: Dell 20.1 Ultra Sharp 2001FP Color Monitor. Perfect/N...
A113: Kaysville, UT
A114: Hi, Im Selling my Dell 20.1 Ultra Sharp 2001FP Color Monitor. Rated 4 ½ out of 5 stars. Fully Adjustable tilt and swivel stand. LCD Display with TFT
A115: 10000
A116: 2010-12-10
A117: 10 Hrs
A118: Monitor
A119: Provo, UT
A120: 18" Monitor. Good condition.
A121: 2000
A122: 2010-12-10
A123: 10 Hrs
A124: HP Pavillion VS17x 17-inch flat panel monitor - Cables...
A125: Sandy, UT
A126: Just in time for Christmas. There is no damage to the Monitor works perfectly. It has the following features:Large Diagonal Viewable area display 17-
A127: 5000
A128: 2010-12-10
A129: 10 Hrs
A130: HP 20" LCD "new in box"
A131: Wvc, UT
A132: new in box. 1600x900 res. built in speakers. tilt and swivel base. new online for 140.00
A133: 10000
A134: 2010-12-10
A135: 11 Hrs
A136: LCD Monitors! (40$-80$)
A137: Provo, UT
A138: Please visit us at www.rewire.us for more monitors, computers, electronics and etc!---All of our LCD Monitors are tested and in excellent working cond
A139: 4000
A140: 2010-12-10
A141: 11 Hrs
A142: Two 15 inch flat screen monitors get 2 for $30!
A143: Salt Lake City, UT
A144: I have 2 15 inch View Sonic VE155 computer monitors in excellent condition. I will sell you 1 for $20 or 2 for $30. email, call or text me 801-633-686
A145: 2000
A146: 2010-12-10
A147: 11 Hrs
A148: 319 Ads
A149: 1 2 3 4 5 6 7 8 9
A150: About this ad
A152: Deals »
A153: You have been subscribed!
A154: please wait...
A157: Kelsyus Portable Outdoor Table
A159: Christus Statue
A160: Build Your Own Holiday Snack Crate Samplie...
A162: advertisement
A163: DirectBuy - Save 50% on 700+ brand names
A164: Tonight at 10.
A165: Justice for Elizabeth Smart. A complete wrap of the day's events on KSL 5 News.
A166: Full TV Schedule | Bios
A167: Most Popular
A169: Read
A170: Video
A171: Commented
A172: Deseret News
A174: 1. Smarts comment on Mitchell verdict
A176: 2. Mitchell found guilty, jury rejects ...
A178: 3. Fire destroys Salt Lake City home
A180: 4. Elizabeth Smart praised for poise, ...
A182: 5. Jurors say verdict wasn't an easy decision
A184: 1. Smarts comment on Mitchell verdict
A186: 2. Mitchell found guilty, jury rejects ...
A188: 3. Mitchell's step-daughter disappointed ...
A190: 4. Jurors say verdict wasn't an easy decision
A192: 5. Doug & the Movies: 'The Tourist'
A194: 1. Obama predicts tax bill passage, possible ...
A196: 2. Online gambling in Utah will stay illegal, ...
A198: 3. New coalition formed in Georgia following ...
A200: 4. Salt Lake soccer complex moving forward ...
A202: 5. House fire that claimed dog caused by ...
A204: About this ad
A205: RSS Feed
A206: .comPost »
A208: UPDATE: Version 3.0 of ksl.com iPhone app released
A210: ksl.com iPhone app version 2.0 launched
A212: Mobile Updates - iPhone and Android
A214: About this ad
A215: Site Index
A216: News | B216: Weather | C216: TV | D216: Radio | E216: Classifieds | F216: Advertise with KSL
A218: Local | B218: Forecasts | C218: Bios | D218: Listen LIVE | E218: General | F218: Other Resources
A219: News | B219: Current Conditions | C219: Schedule | D219: Podcasts | E219: Place an Ad
A220: Politics | B220: VORTEX | C220: Contests | D220: Lineup | E220: Homes | F220: Contact Us / Phone Numbers
A221: Investigations | B221: Microcast | C221: More on the Web | D221: Bios | E221: Place an Ad | F221: Careers with KSL
A222: Tough Times Survival Bank | B222: Water Watch | C222: Studio 5 | D222: Staff Blog | E222: Cars | F222: Careers with DDM
A223: National | B223: Snowpack totals | D223: Shows | E223: Place a Car ad | F223: Web Resources
A224: World | B224: Ramp reports | C224: Sports | D224: Utah's Morning News | E224: Utah Jobs | F224: Charity Account Form
A225: Showbiz | B225: Lawn Watering guide | D225: Doug Wright Show | E225: Place a Job ad
A226: Biz/Finance | B226: Flood/Water Flow | C226: BYU | D226: The Browser | E226: Help | F226: Wireless
A227: Personal Finance Center | B227: Photo Galleries | C227: U of U | D227: Utah's Afternoon News
A228: Consumer | B228: Weather Planner | C228: NFL | D228: Nightside Project | E228: Announcements | F228: ksl.com mobile
A229: Sci/Tech | B229: Weather Lab | C229: Jazz/NBA | D229: KSL Movie Show
A230: Health | B230: Ask the Meteorologist | C230: Prep | D230: KSL Outdoors | E230: Place an Announcement | F230: Legal
A231: Odds & Ends | B231: Ski Report | C231: Golf Utah | D231: KSL Greenhouse Show
A232: Religion | B232: Weather on 5.3 | C232: Deseret First Duel | D232: Matt Townsend Show | E232: Events | F232: Terms of Use
A233: General Conference | C233: Cougar Tracks | D233: KSL Travel Show | F233: Privacy Statement
A234: Mission Guide | B234: Traffic | D234: Features | E234: Post an Event | F234: DMCA Notice
A235: Education | C235: Opinion | D235: Speaking on Biz | F235: EEO Public File Report
A236: KSL Schools | B236: Traffic Cams | D236: Teacher Feature | E236: Movies | F236: DTV Quarterly Activity
C237: Editorials | D237: Metro Business Reports | F237: Closed Captioning Assistance
C238: Sunday Edition | D238: Contests | E238: Movie/Theater Listings
D239: Events | F239: Sister Sites
F241: FM100 / Arrow 103.5
F242: Deseret News / Mormon Times

Sheet Nextag (hidden)
A2: Login using |
A3: Sign In
A4: |
A5: Help
A6: Products
A7: Travel
A8: Degrees
A9: Deals
A10: Shop
A12: Find It. Love It.
A13: related:
A14: v7 17 lcd monitor d1711-n6 brand new
A15: acer v173 djb 17 flat panel lcd monitor,
A17: dell 17 lcd monitor,
A18: 17 lcd monitor,
A19: 17 lcd computer monitor,
A20: 17 hp lcd monitor,
A21: 17 widescreen lcd monitors,
A22: 17 lg lcd monitor,
A23: 17 inch lcd monitor,
A24: 17 lcd monitor speaker,
A25: 17 acer lcd monitor,
A26: 17 lcd monitor nec,
A27: 17 lcd monitor samsung,
A28: viewsonic 17 monitor lcd,
A29: 17 lcd monitor tv
A30: more...
A31: Sorry, no matches found for V7 17" LCD Monitor D1711-N6 - Brand New!.
A32: Related:
A33: ACER V173 DJB 17 FLAT PANEL LCD MONITOR | B33: 17 LCD COMPUTER MONITOR
A34: DELL 17 LCD MONITOR | B34: 17 HP LCD MONITOR
A35: 17 LCD MONITOR | B35: 17 WIDESCREEN LCD MONITORS
A36: Sponsored Links
A37: V7 D1711-N6 Speakers
A38: Free Shipping Offer, Save up to 40% V7 D1711-N6 Speakers - Order Today!
A39: www.Buy.com
A40: Brand Name Monitors
A41: Shop at OfficeMax for Brand Name Monitors. All Monitors Ship Free!
A42: www.OfficeMax.com
A43: V7 D1711 Monitor
A44: Save On the V7 D1711 Monitor. Shop Today at Office Depot.com!
A45: www.OfficeDepot.com
A46: Social Media Monitoring
A47: Fast, Accurate Tracking of Blogs + Other Social Media. Try It Free!
A48: www.CustomScoop.com
A49: 17" Monitors Bargains
A50: Best Value on Famous 17" Monitors. Save More with Same Day Shipping!
A51: TigerDirect.com
A52: Search Tips:
A53: Reduce the number of search terms.
A54: Try alternate spellings for your search terms.
A55: Use different search terms.
A56: Shopping
A57: Baby
A58: Books,
A59: CDs,
A60: & DVDs
A61: Clothing & Accessories
A62: Collectibles & Art
A63: Computers
A64: & Software
A65: Electronics
A66: Flowers & Plants
A67: Food & Wine
A68: & Baskets
A69: Health & Beauty
A70: Home & Garden
A71: Jewelry & Watches
A72: Office Products
A73: Sports & Outdoors
A74: Video Games
A75: & Toys
A76: International
A77: Australia
A78: Canada
A79: France
A80: Germany
A81: Italy
A82: Spain
A83: UK
A84: Mobile
A85: Merchants
A86: My Account
A87: About Us
A88: Customer Service
A89: How Are We Doing?
A90: Tell Us What You Think
A91: More Fun Stuff
A92: Degrees
A93: Travel
A94: Deals
A95: Wize Product Reviews
A96: Sign up for Nextag's Nextbuys newsletter
A97: Learn More
A98: Nextag is committed to protecting your privacy.
A99: Read our privacy policy.
A100: © 1999-2010, Nextag, Inc.
A101: View Recent: Products (0) | Searches (15) | Sellers (0) My Favorites: Products (0) | Searches (0) | Brands (0) | Sellers (0) | My Lists (0)

Sheet Categories
A1: Digital Cameras | B1: 511
A2: Laptops | B2: 215
A3: Playstation | B3: 480
A4: TVs | B4: 658
A5: Xbox Games & Equipment | B5: 479
A6: Fiction Books | B6: 80
A7: Computer Monitors | B7: 466
A8: Palm / PDA's | B8: 217
A9: Ipods | B9: 222
A10: Apple Laptops/Desktops | B10: 554
A11: Cell Phones - AT&T | B11: 613
A12: Cell Phones - Sprint | B12: 616
A13: Cell Phones - T-Mobile | B13: 614
A14: Cell Phones - Verizon | B14: 615

Sheet Google
A1: Screen reader users, click here to turn off Google Instant.
A2: Google
A3: Two 15 inch flat screen monitors get 2 for $30! | B3: × | D3: Advanced search
D4: Language tools
D5: Instant is onInstant is offInstant is off (slow connection) ▼
D6: Google Instant is off due to connection speed. Learn more.
D7: › On (type to search)› Off (press Enter to search)
D8: More about Google Instant
A9: Google Instant is unavailable. Press Enter to search. Learn more
A10: Google Instant is off due to connection speed. Press Enter to search.
A11: Press Enter to search.
A12: Press Enter to search.
A13: Web Images Videos Maps News Shopping Gmail more ▼
A14: Books Finance Translate Scholar Blogs Realtime
A15: YouTube Calendar Photos Documents Reader Sites Groups
A16: even more »
A17: Web History | Search settings | Sign in
A18: Advanced search
A19: About 5,410 results (0.23 seconds)
A20: Your location: Provo, UT 84604 - Change
A21: Change location:
A22: Sort by:
A23: Ads
A24: 1. Flat Screen Monitor Deals
A25: Huge Selection & Savings Up to 80% Same Day Shipping, Buy Now!
A26: TigerDirect.com is rated
A27: Rated 4.6 out of 5.0
A28: (48,877 reviews)
A29: www.TigerDirect.com
A30: 2. Buy Monitors at OfficeMax
A31: OfficeMax.com Has Great Deals on Computer Monitors. Free Shipping!
A32: OfficeMax.com is rated
A33: Rated 4.1 out of 5.0
A34: (2,853 reviews)
A35: www.OfficeMax.com
A36: Search Results
A37: 1. VideoSecu Articulating LCD LED <em>Monitor</em> TV Wall Mount for 22" <em>to</em> 37 ...
A38: 29.99
A39: Amazon.com
A40: Rated 4.4 out of 5.0 5,046 reviews
A41: VideoSecu Articulating LCD LED Monitor TV Wall Mount for 22" to 37 ...
A42: VideoSecu brand TV wall mount. Please report to Amazon if you receive a mount without VideoSecu logo. This adjustable swing articulating LCD LED ...
A43: Add to Shopping List
A44: 2. Arrow 13 <em>to</em> 24 <em>inch Flat</em> Panel TV Desktop Mount
A45: 36.49
A46: $41.14 with tax and shipping
A47: Overstock.com
A48: Rated 4.4 out of 5.0 5,767 reviews
A49: Arrow 13 to 24 inch Flat Panel TV Desktop Mount
A50: Desktop TV mount is made of solid heavy-gauge steel construction and durable powder-coated finish Flat panel TV mount has a VESA 75-mm and 100-mm ...
A51: Add to Shopping List
A52: 3. Premier Mounts Elliptical Series Dual Ceiling Mount for up <em>to Two</em> ...
A53: 1145
A54: Free shipping
A55: StandsandMounts.com
A56: This site accepts Google Checkout
A57: Rated 4.6 out of 5.0 569 reviews
A58: Premier Mounts Elliptical Series Dual Ceiling Mount for up to Two ...
A59: The Elliptical Ceiling Mount Series is the latest mounting innovation from Premier Mounts. Designed from the ground up as universal ceiling mounts ...
A60: Add to Shopping List
A61: 4. 10 <em>inch</em>-24 <em>inch Flat</em> Panel <em>Monitor</em> Plasma LCD HDTV Low profile ...
A62: 18.99
A63: $21.98 with tax and shipping
A64: Buy.com
A65: This site accepts Google Checkout
A66: Rated 4.3 out of 5.0 253,294 reviews
A67: 10 inch-24 inch Flat Panel Monitor Plasma LCD HDTV Low profile ...
A68: Complete your home theater set-up with this Brand New Adjustable Tilt Wall Mount that will accommodate your 10 to 32 inch LCD/LED Flat Panel ...
A69: Add to Shopping List
A70: 5. Buhl <em>Flat Screen Monitor</em> Cart With Cabinet And 34" <em>To</em> 54" Height ...
A71: 449.95
A72: $544.62 with tax and shipping
A73: GLOBALindustrial.com
A74: 8 reviews
A75: Buhl Flat Screen Monitor Cart With Cabinet And 34" To 54" Height ...
A76: BUHL EXTRA-LARGE FLAT PANEL MONITOR & PLASMA, LCD SECURITY CART WITH SLIDE-OUT SHELVES LCD & Plasma Monitor Security Cart holds Flat Screen ...
A77: Add to Shopping List
A78: 6. 3m Executive <em>Flat</em> Filter For 14 - 16" <em>Monitor</em>, Black
A79: 102.99
A80: $116.99 with tax and shipping
A81: Sears
A82: Rated 3.5 out of 5.0 1,404 reviews
A83: 3m Executive Flat Filter For 14 - 16" Monitor, Black
A84: 3M Executive Computer Filter EF200L fits 14" - 16" CRTs and 15" LCD monitors. Two-sided anti-glare coating helps reduce up to 99% of screen glare ...
A85: Add to Shopping List
A86: 7. Swing Arm Wall Mount LCD <em>Monitor Flat Screen</em> TV For LG <em>15</em>-22 <em>Inch</em> ...
A87: 19.99
A88: Amazon.com
A89: Rated 4.4 out of 5.0 5,046 reviews
A90: Swing Arm Wall Mount LCD Monitor Flat Screen TV For LG 15-22 Inch ...
A91: This adjustable swing LCD Wall mount could extends out up to 14" , and fold flat against the wall. Durable steel construction supports LCD monitor ...
A92: Add to Shopping List
A93: 8. MF202B Sanus <em>15</em>" <em>to</em> 37" <em>Flat</em> Panel HDTV Wall Mount with Tilt & Swivel
A94: 69
A95: Free shipping
A96: US Appliance
A97: Rated 4.5 out of 5.0 5,263 reviews
A98: MF202B Sanus 15" to 37" Flat Panel HDTV Wall Mount with Tilt & Swivel
A99: The VisionMount MF202 is a full-motion wall mount for small to medium flat-panel TVs. Sanus Systems? Virtual Axis 3D™ technology allows mount to ...
A100: Add to Shopping List
A101: 9. EVO LCD Arm with Desk Clamp Mount, <em>15</em>" <em>to</em> 21" <em>Screen</em> Options
A102: 212.95
A103: Free shipping
A104: Ergo In Demand
A105: Rated 4.5 out of 5.0 79 reviews
A106: EVO LCD Arm with Desk Clamp Mount, 15" to 21" Screen Options
A107: Levitates a flat panel monitor above the work surface, enabling fingertip adjustment of monitor height and position. Includes two desk mounting ...
A108: Add to Shopping List
A109: 10. Bretford® SmartDeck™ Adjustable, <em>Two</em>-<em>Monitor</em>, <em>Flat</em>-<em>Screen</em> ...
A110: 1305
A111: Highsmith
A112: Bretford® SmartDeck™ Adjustable, Two-Monitor, Flat-Screen ...
A113: Keep expensive flat-screen monitors hidden and secure when not in use! Monitor holder for flat screen flips up for computer use, then folds down ...
A114: Add to Shopping List
A115: Ads
A116: 1. 15" Monitors on Sale
A117: Amazing Deals on 15" Monitors Shop Online Today & Save Big!
A118: CompUSA.com is rated
A119: Rated 4.5 out of 5.0
A120: (3,001 reviews)
A121: www.CompUSA.com
A122: 2. Corning® Gorilla® Glass
A123: Corning® Gorilla® Glass: Tough, Yet Beautiful.
A124: CorningGorillaGlass.com
A125: 3. 2 Screen Monitors
A126: Find 2 Screen Monitors at Target. Shop and Save at Target.com.
A127: www.Target.com
A128: Everything
A129: Images
A130: Videos
A131: News
A132: Shopping
A133: Books
A134: Places
A135: Blogs
A136: Realtime
A137: Discussions
A138: MoreFewer
A139: Search Options
A141: Show only
A142: In stock nearbyNew!
A143: Google Checkout
A144: Free shipping
A145: New items
A147: Any category
A149: Television Mounts & Brackets
A150: Bedsheets
A153: Any price
A154: Up to $200
A155: $200 – $500
A156: $500 – $1000
A157: Over $1000
A159: $ to
A160: $
A162: Any brand
A164: Sanus
A165: Peerless
A166: Luxor
A167: Premier Mounts
A168: Tripp Lite
A169: More
A171: Bretford
A172: Chief Manufacturing
A173: Clover Electronics
A174: Htmarket
A175: Kensington
A176: Luxor
A177: Peerless
A178: Premier Mounts
A179: Sanus
A180: Tripp Lite
A181: Fewer
A183: Any store
A185: Amazon.com
A186: Buy.com
A187: Sears
A188: J&R Music and Computer World
A189: Dell Small Business
A190: More
A192: Amazon.com
A193: Betty Mills Company
A194: Buy.com
A195: Dell Small Business
A196: Ergo In Demand
A197: Fry's Electronics
A198: GLOBALindustrial.com
A199: Highsmith
A200: HTmarket.com
A201: igonemobile
A202: J&R Music and Computer World
A203: L-Tron Corporation
A204: Lab Safety Supply ®
A205: Markertek
A206: Overstock.com
A207: PacificGeek.com
A208: Sears
A209: SolidSignal.com
A210: StandsandMounts.com
A211: US Appliance
A212: Fewer
... 4 more rows
